[Event "European Womens-ch 2025"]
[Site "Rhodes"]
[Date "2025.04.09"]
[Round "9.56"]
[White "Alexandri, Vasiliki"]
[Black "Acarbay, Algi"]
[Result "1-0"]
[Annotator "NA"]
[ECO "B07"]
[WhiteElo "1927"]
[BlackElo "2052"]
[PlyCount "91"]
[EventDate "2025.03.29"]
[EventType "swiss"]
[EventCountry "GRE"]
[SourceTitle "playchess.com"]
[Source "ChessBase"]
[SourceQuality "1"]
[TimeControl "40/5400+30:1800+30"]

1. d4 {[%emt 0:00:03]} d6 {[%emt 0:00:21]} 2. e4 {[%emt 0:00:06]} Nf6 {[%emt 0:00:13]} 3. Nc3 {[%emt 0:00:18]} e5 {[%emt 0:00:16]} 4. dxe5 {[%emt 0:01:56]} dxe5 {[%emt 0:00:06]} 5. Qxd8+ {[%emt 0:00:12]} Kxd8 {[%emt 0:00:04]} 6. Bc4 {[%emt 0:02:15]} Ke8 {[%emt 0:00:20]} 7. Nf3 {[%emt 0:02:23]} Bd6 {[%emt 0:00:54]} 8. Bg5 {[%emt 0:05:02]} Nbd7 {[%emt 0:00:50]} 9. O-O-O {[%emt 0:03:49]} a6 {[%emt 0:02:35]} 10. a4 {[%emt 0:10:23]} h6 {[%emt 0:00:36]} 11. Be3 {[%emt 0:03:32]} Ng4 {[%emt 0:10:28]} 12. Nd5 {[%emt 0:01:36]} Nxe3 {[%emt 0:19:35]} 13. Nxe3 {[%emt 0:00:02]} Nb6 {[%emt 0:27:19]} 14. a5 {[%emt 0:07:12]} Nd7 {[%emt 0:14:07]} 15. Rxd6 {[%emt 0:11:38]} cxd6 {[%emt 0:00:16]} 16. Nf5 {[%emt 0:00:13]} Rf8 {[%emt 0:11:34]} 17. Nxg7+ {[%emt 0:03:47]} Kd8 {[%emt 0:00:30]} 18. Nf5 {[%emt 0:00:58]} Kc7 {[%emt 0:01:14]} 19. Rd1 {[%emt 0:03:47]} Nc5 {[%emt 0:05:09]} 20. Nxd6 {[%emt 0:01:00]} f6 {[%emt 0:00:21]} 21. b4 {[%emt 0:01:46]} Ne6 {[%emt 0:01:07]} 22. Nxc8 {[%emt 0:00:22]} Raxc8 {[%emt 0:00:38]} 23. Bxe6 {[%emt 0:00:07]} Rcd8 {[%emt 0:00:16]} 24. Rxd8 {[%emt 0:02:35]} Rxd8 {[%emt 0:00:03]} 25. Bd5 {[%emt 0:00:33]} b6 {[%emt 0:00:31]} 26. axb6+ {[%emt 0:00:38]} Kxb6 {[%emt 0:00:05]} 27. c4 {[%emt 0:00:29]} a5 {[%emt 0:02:42]} 28. bxa5+ {[%emt 0:01:32]} Kxa5 {[%emt 0:00:06]} 29. c5 {[%emt 0:01:30]} Rc8 {[%emt 0:00:07]} 30. c6 {[%emt 0:00:07]} Kb6 {[%emt 0:00:12]} 31. Nh4 {[%emt 0:00:52]} Kc7 {[%emt 0:00:29]} 32. Nf5 {[%emt 0:00:27]} Ra8 {[%emt 0:00:43]} 33. Kb2 {[%emt 0:01:12]} h5 {[%emt 0:00:21]} 34. Ng7 {[%emt 0:01:03]} Rb8+ {[%emt 0:00:32]} 35. Kc3 {[%emt 0:00:48]} h4 {[%emt 0:00:31]} 36. Ne6+ {[%emt 0:01:03]} Kc8 {[%emt 0:00:08]} 37. Bc4 {[%emt 0:02:53]} Rb6 {[%emt 0:00:11]} 38. Bd5 {[%emt 0:02:46]} Rb1 {[%emt 0:00:22]} 39. Nc5 {[%emt 0:01:18]} Rc1+ {[%emt 0:01:26]} 40. Kb4 {[%emt 0:00:00]} Rb1+ {[%emt 0:00:00]} 41. Ka5 {[%emt 0:01:43]} Kc7 {[%emt 0:07:46]} 42. Na6+ {[%emt 0:00:50]} Kd6 {[%emt 0:00:37]} 43. c7 {[%emt 0:00:45]} Ra1+ {[%emt 0:00:16]} 44. Kb6 {[%emt 0:00:27]} Rb1+ {[%emt 0:00:22]} 45. Ka7 {[%emt 0:00:16]} Rc1 {[%emt 0:00:19]} 46. Bb7 {[%emt 0:00:28]} 1-0

[Event "European Womens-ch 2025"]
[Site "Rhodes"]
[Date "2025.04.09"]
[Round "9.57"]
[White "Golsta, Ramona"]
[Black "Shuqja, Klean"]
[Result "0-1"]
[Annotator "NA"]
[ECO "E11"]
[WhiteElo "1943"]
[BlackElo "2049"]
[PlyCount "62"]
[EventDate "2025.03.29"]
[EventType "swiss"]
[EventCountry "GRE"]
[SourceTitle "playchess.com"]
[Source "ChessBase"]
[SourceQuality "1"]
[TimeControl "40/5400+30:1800+30"]

1. d4 {[%emt 0:00:01]} Nf6 {[%emt 0:01:38]} 2. c4 {[%emt 0:00:12]} e6 {[%emt 0:00:02]} 3. Nf3 {[%emt 0:00:08]} Bb4+ {[%emt 0:00:39]} 4. Bd2 {[%emt 0:00:16]} Qe7 {[%emt 0:00:08]} 5. g3 {[%emt 0:00:53]} O-O {[%emt 0:00:52]} 6. Bg2 {[%emt 0:00:12]} Nc6 {[%emt 0:02:34]} 7. O-O {[%emt 0:01:45]} Bxd2 {[%emt 0:01:50]} 8. Qxd2 {[%emt 0:00:22]} d5 {[%emt 0:01:05]} 9. cxd5 {[%emt 0:04:27]} exd5 {[%emt 0:00:29]} 10. Nc3 {[%emt 0:00:51]} h6 {[%emt 0:06:40]} 11. a3 {[%emt 0:00:54]} a5 {[%emt 0:06:53]} 12. Rac1 {[%emt 0:05:36]} Ne4 {[%emt 0:12:03]} 13. Qe3 {[%emt 0:19:40]} Nxc3 {[%emt 0:03:03]} 14. Qxe7 {[%emt 0:02:38]} Nxe7 {[%emt 0:00:08]} 15. Rxc3 {[%emt 0:00:04]} c6 {[%emt 0:00:35]} 16. b4 {[%emt 0:01:22]} axb4 {[%emt 0:01:31]} 17. axb4 {[%emt 0:00:05]} Ra2 {[%emt 0:01:38]} 18. e3 {[%emt 0:09:14]} Rb2 {[%emt 0:00:56]} 19. Ne5 {[%emt 0:00:19]} Rxb4 {[%emt 0:02:39]} 20. Nd3 {[%emt 0:02:25]} Ra4 {[%emt 0:03:59]} 21. Nc5 {[%emt 0:00:56]} Ra2 {[%emt 0:02:21]} 22. Rb3 {[%emt 0:02:32]} b5 {[%emt 0:01:20]} 23. f3 {[%emt 0:07:33]} Be6 {[%emt 0:03:00]} 24. e4 {[%emt 0:09:11]} Rfa8 {[%emt 0:06:22]} 25. f4 {[%emt 0:13:26]} Rd2 {[%emt 0:09:31]} 26. f5 {[%emt 0:13:47]} Raa2 {[%emt 0:00:30]} 27. Bh1 {[%emt 0:00:11]} Bc8 {[%emt 0:01:24]} 28. g4 {[%emt 0:01:28]} Rxd4 {[%emt 0:01:56]} 29. Rg3 {[%emt 0:00:47]} Rc4 {[%emt 0:01:05]} 30. Nd3 {[%emt 0:01:27]} dxe4 {[%emt 0:00:41]} 31. Ne5 {[%emt 0:00:04]} Rc5 {[%emt 0:01:06]} 0-1

[Event "European Womens-ch 2025"]
[Site "Rhodes"]
[Date "2025.04.09"]
[Round "9.58"]
[White "Silva, Ana Ines Teixeira Da"]
[Black "Mihaljevic, Eva"]
[Result "1/2-1/2"]
[Annotator "NA"]
[ECO "B22"]
[WhiteElo "1893"]
[BlackElo "2039"]
[PlyCount "108"]
[EventDate "2025.03.29"]
[EventType "swiss"]
[EventCountry "GRE"]
[SourceTitle "playchess.com"]
[Source "ChessBase"]
[SourceQuality "1"]
[TimeControl "40/5400+30:1800+30"]

1. e4 {[%emt 0:00:03]} c5 {[%emt 0:00:05]} 2. c3 {[%emt 0:00:04]} d5 {[%emt 0:00:21]} 3. exd5 {[%emt 0:00:06]} Nf6 {[%emt 0:00:08]} 4. Qa4+ {[%emt 0:04:20]} Nbd7 {[%emt 0:00:40]} 5. Qb3 {[%emt 0:00:52]} a6 {[%emt 0:00:41]} 6. Nf3 {[%emt 0:06:54]} b5 {[%emt 0:00:59]} 7. c4 {[%emt 0:02:08]} bxc4 {[%emt 0:00:34]} 8. Bxc4 {[%emt 0:00:38]} Nb6 {[%emt 0:00:21]} 9. Nc3 {[%emt 0:01:45]} Nxc4 {[%emt 0:02:00]} 10. Qa4+ {[%emt 0:02:58]} Bd7 {[%emt 0:03:24]} 11. Qxc4 {[%emt 0:00:10]} e6 {[%emt 0:04:14]} 12. O-O {[%emt 0:19:08]} exd5 {[%emt 0:08:14]} 13. Nxd5 {[%emt 0:02:52]} Nxd5 {[%emt 0:16:31]} 14. Qxd5 {[%emt 0:00:19]} Be7 {[%emt 0:01:02]} 15. Re1 {[%emt 0:11:09]} O-O {[%emt 0:01:25]} 16. d4 {[%emt 0:03:43]} Be6 {[%emt 0:06:55]} 17. Qxd8 {[%emt 0:06:52]} Rfxd8 {[%emt 0:00:56]} 18. dxc5 {[%emt 0:06:50]} Bxc5 {[%emt 0:00:30]} 19. Bg5 {[%emt 0:05:23]} Rd5 {[%emt 0:12:51]} 20. Rac1 {[%emt 0:05:28]} h6 {[%emt 0:01:54]} 21. Bd2 {[%emt 0:05:49]} Bg4 {[%emt 0:13:20]} 22. Be3 {[%emt 0:07:30]} Bb4 {[%emt 0:02:15]} 23. Red1 {[%emt 0:01:11]} Rad8 {[%emt 0:06:03]} 24. Rxd5 {[%emt 0:00:36]} Rxd5 {[%emt 0:00:06]} 25. a3 {[%emt 0:02:03]} Be7 {[%emt 0:00:53]} 26. h3 {[%emt 0:00:51]} Bh5 {[%emt 0:02:51]} 27. b4 {[%emt 0:01:54]} Rd3 {[%emt 0:01:05]} 28. g4 {[%emt 0:01:07]} Bg6 {[%emt 0:00:46]} 29. Ne5 {[%emt 0:00:34]} Rxa3 {[%emt 0:00:41]} 30. Nxg6 {[%emt 0:00:28]} fxg6 {[%emt 0:00:05]} 31. Rc8+ {[%emt 0:00:31]} Kh7 {[%emt 0:04:27]} 32. Bc5 {[%emt 0:00:39]} Bxc5 {[%emt 0:04:34]} 33. Rxc5 {[%emt 0:01:01]} Rxh3 {[%emt 0:00:08]} 34. Kg2 {[%emt 0:00:36]} Rb3 {[%emt 0:00:41]} 35. Rc4 {[%emt 0:00:09]} g5 {[%emt 0:00:55]} 36. f3 {[%emt 0:00:34]} Kg6 {[%emt 0:01:03]} 37. Rc6+ {[%emt 0:00:26]} Kf7 {[%emt 0:00:12]} 38. Rxa6 {[%emt 0:00:25]} Rxb4 {[%emt 0:00:06]} 39. Rc6 {[%emt 0:00:25]} Rf4 {[%emt 0:00:37]} 40. Kg3 {[%emt 0:00:00]} Rf6 {[%emt 0:00:00]} 41. Rc7+ {[%emt 0:01:56]} Kg6 {[%emt 0:00:58]} 42. Ra7 {[%emt 0:02:34]} Re6 {[%emt 0:00:09]} 43. Ra5 {[%emt 0:04:34]} Kf6 {[%emt 0:03:36]} 44. Rf5+ {[%emt 0:01:03]} Ke7 {[%emt 0:00:07]} 45. Ra5 {[%emt 0:00:35]} Rd6 {[%emt 0:00:46]} 46. Re5+ {[%emt 0:01:22]} Kf6 {[%emt 0:01:04]} 47. Rf5+ {[%emt 0:08:17]} Ke6 {[%emt 0:00:14]} 48. Rf8 {[%emt 0:01:05]} Rd7 {[%emt 0:00:25]} 49. Ra8 {[%emt 0:01:05]} Ke5 {[%emt 0:03:34]} 50. Re8+ {[%emt 0:01:50]} Kd4 {[%emt 0:00:48]} 51. Re1 {[%emt 0:04:31]} Rf7 {[%emt 0:00:14]} 52. Re8 {[%emt 0:01:04]} Kd3 {[%emt 0:01:05]} 53. Kg2 {[%emt 0:01:52]} Ra7 {[%emt 0:00:56]} 54. Kg3 {[%emt 0:00:55]} Rb7 {[%emt 0:00:59]} 1/2-1/2

[Event "European Womens-ch 2025"]
[Site "Rhodes"]
[Date "2025.04.09"]
[Round "9.59"]
[White "Subramanian, Anusha"]
[Black "Recica, Jona"]
[Result "1-0"]
[Annotator "NA"]
[ECO "A14"]
[WhiteElo "2026"]
[BlackElo "1716"]
[PlyCount "63"]
[EventDate "2025.03.29"]
[EventType "swiss"]
[EventCountry "GRE"]
[SourceTitle "playchess.com"]
[Source "ChessBase"]
[SourceQuality "1"]
[TimeControl "40/5400+30:1800+30"]

1. Nf3 {[%emt 0:00:03]} d5 {[%emt 0:00:07]} 2. c4 {[%emt 0:00:06]} c6 {[%emt 0:00:07]} 3. g3 {[%emt 0:00:04]} Nf6 {[%emt 1:31:46]} 4. Bg2 {[%emt 0:00:04]} e6 {[%emt 0:00:00]} 5. O-O {[%emt 1:32:43]} Be7 {[%emt 0:00:00]} 6. b3 {[%emt 0:00:00]} O-O {[%emt 0:00:00]} 7. Bb2 {[%emt 0:00:00]} Nbd7 {[%emt 0:00:00]} 8. d3 {[%emt 0:00:00]} b6 {[%emt 0:00:00]} 9. Nbd2 {[%emt 0:00:00]} Qc7 {[%emt 0:00:00]} 10. Rc1 {[%emt 0:00:00]} Bb7 {[%emt 0:00:00]} 11. cxd5 {[%emt 0:00:00]} Nxd5 {[%emt 0:00:00]} 12. a3 {[%emt 0:00:00]} Rac8 {[%emt 0:00:00]} 13. Qc2 {[%emt 0:00:00]} Qb8 {[%emt 0:00:00]} 14. Qb1 {[%emt 0:00:00]} f5 {[%emt 0:00:00]} 15. e4 {[%emt 0:00:00]} N5f6 {[%emt 0:00:00]} 16. Nd4 {[%emt 0:00:00]} fxe4 {[%emt 0:00:00]} 17. Nxe6 {[%emt 0:00:00]} Rfe8 {[%emt 0:00:00]} 18. dxe4 {[%emt 0:00:00]} Ba6 {[%emt 0:00:00]} 19. Rfd1 {[%emt 0:00:00]} Ne5 {[%emt 0:08:00]} 20. Nf3 {[%emt 0:00:00]} Bd6 {[%emt 0:00:00]} 21. Nxe5 {[%emt 0:00:00]} Bxe5 {[%emt 0:00:00]} 22. Nd4 {[%emt 0:00:00]} c5 {[%emt 0:00:00]} 23. Nf5 {[%emt 0:00:00]} g6 {[%emt 0:00:00]} 24. Bxe5 {[%emt 0:00:00]} Rxe5 {[%emt 0:00:00]} 25. Nd6 {[%emt 0:00:00]} Rd8 {[%emt 0:00:00]} 26. f4 {[%emt 0:00:00]} Re7 {[%emt 0:00:00]} 27. e5 {[%emt 0:00:00]} Nd7 {[%emt 0:00:00]} 28. Bd5+ {[%emt 0:00:00]} Kg7 {[%emt 0:00:00]} 29. Qb2 {[%emt 0:00:00]} Nf8 {[%emt 0:00:00]} 30. f5 {[%emt 0:00:00]} Kh6 {[%emt 0:00:00]} 31. Qd2+ {[%emt 0:00:00]} g5 {[%emt 0:00:00]} 32. h4 {[%emt 0:00:00]} 1-0

[Event "European Womens-ch 2025"]
[Site "Rhodes"]
[Date "2025.04.09"]
[Round "9.60"]
[White "Alexandri, Dimitra"]
[Black "Nahapetyan, Ani"]
[Result "0-1"]
[Annotator "NA"]
[ECO "B87"]
[WhiteElo "1995"]
[BlackElo "1887"]
[PlyCount "142"]
[EventDate "2025.03.29"]
[EventType "swiss"]
[EventCountry "GRE"]
[SourceTitle "playchess.com"]
[Source "ChessBase"]
[SourceQuality "1"]
[TimeControl "40/5400+30:1800+30"]

1. e4 {[%emt 0:00:03]} c5 {[%emt 0:00:10]} 2. Nf3 {[%emt 0:00:15]} d6 {[%emt 0:00:08]} 3. d4 {[%emt 0:00:07]} cxd4 {[%emt 0:00:05]} 4. Nxd4 {[%emt 0:00:13]} Nf6 {[%emt 0:00:21]} 5. Nc3 {[%emt 0:00:10]} a6 {[%emt 0:00:16]} 6. Bc4 {[%emt 0:00:17]} e6 {[%emt 0:00:35]} 7. Bb3 {[%emt 0:00:22]} b5 {[%emt 0:03:12]} 8. O-O {[%emt 0:00:15]} Be7 {[%emt 0:02:47]} 9. Qf3 {[%emt 0:01:02]} Qc7 {[%emt 0:08:30]} 10. Re1 {[%emt 0:00:52]} O-O {[%emt 0:05:13]} 11. Qg3 {[%emt 0:03:18]} Nc6 {[%emt 0:05:56]} 12. Nxc6 {[%emt 0:06:06]} Qxc6 {[%emt 0:00:13]} 13. Bh6 {[%emt 0:02:32]} Ne8 {[%emt 0:02:43]} 14. a4 {[%emt 0:12:38]} b4 {[%emt 0:03:13]} 15. Na2 {[%emt 1:09:50]} Rb8 {[%emt 0:02:31]} 16. Nc1 {[%emt 0:00:00]} Kh8 {[%emt 0:02:46]} 17. Bd2 {[%emt 0:00:00]} Nf6 {[%emt 0:04:41]} 18. f3 {[%emt 0:00:00]} a5 {[%emt 0:04:30]} 19. Nd3 {[%emt 0:00:00]} Ba6 {[%emt 0:03:14]} 20. e5 {[%emt 0:00:00]} Nd7 {[%emt 0:03:07]} 21. exd6 {[%emt 0:00:00]} Bxd6 {[%emt 0:00:24]} 22. Bf4 {[%emt 0:00:00]} Bxf4 {[%emt 0:03:17]} 23. Nxf4 {[%emt 0:00:00]} Nc5 {[%emt 0:03:23]} 24. Nh5 {[%emt 0:00:00]} Rg8 {[%emt 0:00:25]} 25. Qe5 {[%emt 0:00:00]} Rbc8 {[%emt 0:11:45]} 26. Kh1 {[%emt 0:00:00]} Nxb3 {[%emt 0:02:15]} 27. cxb3 {[%emt 0:00:00]} Qc5 {[%emt 0:00:46]} 28. Ng3 {[%emt 0:00:00]} Bb7 {[%emt 0:04:21]} 29. Qf4 {[%emt 0:00:00]} Qc7 {[%emt 0:00:34]} 30. Qe3 {[%emt 0:00:00]} Rgd8 {[%emt 0:01:48]} 31. Rac1 {[%emt 0:00:00]} Qd7 {[%emt 0:00:31]} 32. Rxc8 {[%emt 0:00:00]} Rxc8 {[%emt 0:03:02]} 33. Qa7 {[%emt 0:00:00]} h6 {[%emt 0:03:55]} 34. Qxa5 {[%emt 0:05:40]} Qd2 {[%emt 0:00:44]} 35. Qe5 {[%emt 0:01:29]} Rc2 {[%emt 0:01:23]} 36. Qe2 {[%emt 0:00:48]} Qxe2 {[%emt 0:00:22]} 37. Nxe2 {[%emt 0:00:09]} Rxb2 {[%emt 0:00:16]} 38. Nc1 {[%emt 0:02:00]} Bd5 {[%emt 0:01:42]} 39. h3 {[%emt 0:00:41]} Rb1 {[%emt 0:01:29]} 40. Rg1 {[%emt 0:00:00]} Kg8 {[%emt 0:00:00]} 41. a5 {[%emt 0:05:00]} Kf8 {[%emt 0:07:34]} 42. a6 {[%emt 0:01:31]} Ke7 {[%emt 0:01:58]} 43. a7 {[%emt 0:01:14]} Kd6 {[%emt 0:00:50]} 44. Ne2 {[%emt 0:02:00]} Rxg1+ {[%emt 0:03:07]} 45. Kxg1 {[%emt 0:00:14]} Kc7 {[%emt 0:00:26]} 46. Nf4 {[%emt 0:01:02]} Kb7 {[%emt 0:00:39]} 47. Nd3 {[%emt 0:00:41]} Kxa7 {[%emt 0:00:19]} 48. Nxb4 {[%emt 0:00:07]} Bxb3 {[%emt 0:00:03]} 49. Kf2 {[%emt 0:00:44]} Kb6 {[%emt 0:00:31]} 50. Nd3 {[%emt 0:01:22]} f6 {[%emt 0:01:17]} 51. Nf4 {[%emt 0:03:32]} g5 {[%emt 0:01:07]} 52. Nh5 {[%emt 0:01:13]} f5 {[%emt 0:00:10]} 53. g4 {[%emt 0:00:41]} f4 {[%emt 0:03:25]} 54. Nf6 {[%emt 0:00:38]} Kc6 {[%emt 0:02:13]} 55. Ne4 {[%emt 0:02:58]} Kd5 {[%emt 0:01:08]} 56. Nc3+ {[%emt 0:00:50]} Kd4 {[%emt 0:01:31]} 57. Nb5+ {[%emt 0:01:17]} Kd3 {[%emt 0:01:49]} 58. Nd6 {[%emt 0:00:44]} e5 {[%emt 0:07:49]} 59. Ne4 {[%emt 0:04:33]} Kd4 {[%emt 0:00:49]} 60. Nd6 {[%emt 0:01:54]} Kd5 {[%emt 0:01:03]} 61. Ne4 {[%emt 0:02:47]} Bc2 {[%emt 0:01:23]} 62. Nf6+ {[%emt 0:04:03]} Ke6 {[%emt 0:00:26]} 63. Ne8 {[%emt 0:00:30]} Bd3 {[%emt 0:00:57]} 64. Nc7+ {[%emt 0:00:42]} Kd6 {[%emt 0:00:16]} 65. Ne8+ {[%emt 0:00:20]} Ke7 {[%emt 0:01:25]} 66. Nc7 {[%emt 0:02:12]} Bc4 {[%emt 0:00:24]} 67. Na8 {[%emt 0:00:08]} Kd8 {[%emt 0:00:25]} 68. Nb6 {[%emt 0:00:20]} Bb3 {[%emt 0:00:05]} 69. Ke2 {[%emt 0:01:12]} Kc7 {[%emt 0:00:11]} 70. Na8+ {[%emt 0:00:13]} Kb7 {[%emt 0:00:13]} 71. Kd3 {[%emt 0:00:03]} Bd5 {[%emt 0:00:16]} 0-1

[Event "European Womens-ch 2025"]
[Site "Rhodes"]
[Date "2025.04.09"]
[Round "9.61"]
[White "Kosma, Maria"]
[Black "Hariharan, Shambavi"]
[Result "1/2-1/2"]
[Annotator "NA"]
[ECO "C77"]
[WhiteElo "1826"]
[BlackElo "2024"]
[PlyCount "71"]
[EventDate "2025.03.29"]
[EventType "swiss"]
[EventCountry "GRE"]
[SourceTitle "playchess.com"]
[Source "ChessBase"]
[SourceQuality "1"]
[TimeControl "40/5400+30:1800+30"]

1. e4 {[%emt 0:00:04]} e5 {[%emt 0:00:03]} 2. Nf3 {[%emt 0:00:06]} Nc6 {[%emt 0:00:12]} 3. Bb5 {[%emt 0:00:08]} a6 {[%emt 0:00:04]} 4. Ba4 {[%emt 0:00:05]} Nf6 {[%emt 0:00:05]} 5. d3 {[%emt 0:00:05]} b5 {[%emt 0:00:24]} 6. Bb3 {[%emt 0:00:10]} Bc5 {[%emt 0:00:18]} 7. c3 {[%emt 0:00:23]} h6 {[%emt 0:02:26]} 8. d4 {[%emt 0:06:43]} exd4 {[%emt 0:02:35]} 9. e5 {[%emt 0:00:05]} Ng8 {[%emt 0:07:42]} 10. cxd4 {[%emt 0:05:50]} Bb4+ {[%emt 0:00:21]} 11. Nc3 {[%emt 0:00:15]} d5 {[%emt 0:01:05]} 12. exd6 {[%emt 0:00:51]} Bxd6 {[%emt 0:04:10]} 13. O-O {[%emt 0:12:01]} Nge7 {[%emt 0:01:01]} 14. h3 {[%emt 0:06:51]} O-O {[%emt 0:02:20]} 15. Bc2 {[%emt 0:04:39]} Bf5 {[%emt 0:01:37]} 16. Ne4 {[%emt 0:00:15]} Re8 {[%emt 0:06:05]} 17. a3 {[%emt 0:10:39]} Ng6 {[%emt 0:21:33]} 18. Re1 {[%emt 0:11:02]} Nce7 {[%emt 0:08:51]} 19. Nc3 {[%emt 0:02:42]} Bxc2 {[%emt 0:05:59]} 20. Qxc2 {[%emt 0:00:02]} Bf4 {[%emt 0:01:31]} 21. Qe4 {[%emt 0:07:36]} Qd6 {[%emt 0:05:35]} 22. Be3 {[%emt 0:12:14]} c6 {[%emt 0:09:02]} 23. Qc2 {[%emt 0:02:06]} Nd5 {[%emt 0:04:10]} 24. Ne4 {[%emt 0:01:57]} Qd7 {[%emt 0:03:56]} 25. Bxf4 {[%emt 0:02:29]} Ndxf4 {[%emt 0:00:16]} 26. Kh2 {[%emt 0:03:15]} Qd5 {[%emt 0:04:34]} 27. Re3 {[%emt 0:03:28]} Ne6 {[%emt 0:01:39]} 28. Rd1 {[%emt 0:01:26]} Rad8 {[%emt 0:01:26]} 29. Nc3 {[%emt 0:02:17]} Qd6+ {[%emt 0:01:05]} 30. g3 {[%emt 0:00:02]} Nc7 {[%emt 0:01:39]} 31. h4 {[%emt 0:02:05]} Nd5 {[%emt 0:01:46]} 32. Nxd5 {[%emt 0:00:56]} Qxd5 {[%emt 0:00:08]} 33. Rde1 {[%emt 0:00:12]} Rxe3 {[%emt 0:00:55]} 34. Rxe3 {[%emt 0:00:02]} Rc8 {[%emt 0:00:25]} 35. b4 {[%emt 0:01:19]} Ra8 {[%emt 0:01:12]} 36. Qd2 {[%emt 0:02:11]} 1/2-1/2

[Event "European Womens-ch 2025"]
[Site "Rhodes"]
[Date "2025.04.09"]
[Round "9.62"]
[White "Zvereva, Marija"]
[Black "Chasouraki, Chrysi"]
[Result "0-1"]
[Annotator "NA"]
[ECO "B40"]
[WhiteElo "2033"]
[BlackElo "1843"]
[PlyCount "104"]
[EventDate "2025.03.29"]
[EventType "swiss"]
[EventCountry "GRE"]
[SourceTitle "playchess.com"]
[Source "ChessBase"]
[SourceQuality "1"]
[TimeControl "40/5400+30:1800+30"]

1. e4 {[%emt 0:00:31]} c5 {[%emt 0:00:06]} 2. Nf3 {[%emt 0:00:10]} e6 {[%emt 0:00:38]} 3. g3 {[%emt 0:00:13]} d5 {[%emt 0:00:03]} 4. exd5 {[%emt 0:06:00]} exd5 {[%emt 0:00:05]} 5. d4 {[%emt 0:00:09]} cxd4 {[%emt 0:00:25]} 6. Nxd4 {[%emt 0:01:14]} Nc6 {[%emt 0:00:10]} 7. Bg2 {[%emt 0:01:15]} Bc5 {[%emt 0:00:24]} 8. Ne2 {[%emt 0:16:23]} Nf6 {[%emt 0:03:50]} 9. O-O {[%emt 0:02:48]} O-O {[%emt 0:03:53]} 10. Nd2 {[%emt 0:14:04]} Re8 {[%emt 0:04:47]} 11. h3 {[%emt 0:01:41]} Bf5 {[%emt 0:08:30]} 12. Nb3 {[%emt 0:11:40]} Bb6 {[%emt 0:02:11]} 13. c3 {[%emt 0:01:49]} Be4 {[%emt 0:09:37]} 14. Ned4 {[%emt 0:17:08]} Bxg2 {[%emt 0:18:19]} 15. Kxg2 {[%emt 0:00:04]} Ne4 {[%emt 0:04:06]} 16. Bf4 {[%emt 0:09:14]} Qf6 {[%emt 0:08:00]} 17. f3 {[%emt 0:02:04]} Nd6 {[%emt 0:06:13]} 18. Bxd6 {[%emt 0:06:53]} Qxd6 {[%emt 0:00:47]} 19. f4 {[%emt 0:01:54]} Nxd4 {[%emt 0:05:59]} 20. Nxd4 {[%emt 0:00:13]} Re4 {[%emt 0:01:29]} 21. Qd2 {[%emt 0:03:03]} Rae8 {[%emt 0:02:42]} 22. Rae1 {[%emt 0:00:19]} Bxd4 {[%emt 0:04:19]} 23. cxd4 {[%emt 0:00:09]} Qe7 {[%emt 0:04:34]} 24. Kf2 {[%emt 0:01:25]} Qd7 {[%emt 0:01:25]} 25. Kg2 {[%emt 0:00:36]} Qe7 {[%emt 0:05:58]} 26. Kf2 {[%emt 0:00:29]} Qe6 {[%emt 0:01:34]} 27. Rh1 {[%emt 0:01:01]} Qa6 {[%emt 0:03:06]} 28. b3 {[%emt 0:00:17]} h6 {[%emt 0:00:36]} 29. Rxe4 {[%emt 0:00:19]} Rxe4 {[%emt 0:00:09]} 30. Re1 {[%emt 0:01:32]} Rxe1 {[%emt 0:00:47]} 31. Kxe1 {[%emt 0:00:02]} Qe6+ {[%emt 0:00:08]} 32. Qe2 {[%emt 0:00:02]} Qxh3 {[%emt 0:00:16]} 33. Qe8+ {[%emt 0:00:03]} Kh7 {[%emt 0:01:54]} 34. Qxf7 {[%emt 0:00:18]} Qxg3+ {[%emt 0:00:00]} 35. Kd2 {[%emt 0:02:58]} Qf2+ {[%emt 0:00:02]} 36. Kd3 {[%emt 0:00:00]} Qf3+ {[%emt 0:00:20]} 37. Kd2 {[%emt 0:00:00]} Qe4 {[%emt 0:01:38]} 38. Kc3 {[%emt 0:00:31]} Qe3+ {[%emt 0:00:00]} 39. Kc2 {[%emt 0:00:06]} Qxd4 {[%emt 0:00:13]} 40. Qf5+ {[%emt 0:00:00]} g6 {[%emt 0:00:00]} 41. Qf7+ {[%emt 0:01:16]} Qg7 {[%emt 0:01:21]} 42. Qxd5 {[%emt 0:31:37]} h5 {[%emt 0:30:56]} 43. Qg5 {[%emt 0:00:30]} Qc7+ {[%emt 0:00:00]} 44. Kb2 {[%emt 0:00:00]} b6 {[%emt 0:00:00]} 45. b4 {[%emt 0:01:00]} Qd6 {[%emt 0:00:00]} 46. a3 {[%emt 0:00:00]} Kg7 {[%emt 0:00:00]} 47. Kb3 {[%emt 0:00:00]} a6 {[%emt 0:00:00]} 48. Qg3 {[%emt 0:00:00]} Qd1+ {[%emt 0:00:00]} 49. Kc4 {[%emt 0:00:00]} Qd6 {[%emt 0:00:00]} 50. Qe3 {[%emt 0:00:00]} h4 {[%emt 0:00:00]} 51. f5 {[%emt 0:00:00]} gxf5 {[%emt 0:00:00]} 52. Qf3 {[%emt 0:00:00]} b5+ {[%emt 0:00:00]} 0-1